bitfinex-derivatives/quotes_BTCF0:USTF0_20250313
["timestamp","ask_amount","ask_price","bid_price","bid_amount"]
[1741908554648,0.33341214,81143.0,81142.0,0.0609]
[1741908555160,0.33141214,81143.0,81142.0,0.0609]
[1741908555460,0.20281214,81143.0,81142.0,0.0609]
[1741908555667,0.33441214,81143.0,81142.0,0.0609]
[1741908556762,0.33337214,81143.0,81142.0,0.0609]
[1741908556956,0.33637214,81143.0,81142.0,0.0609]
[1741908557162,0.20481214,81143.0,81142.0,0.0609]
[1741908557358,0.33637214,81143.0,81142.0,0.0609]
[1741908557552,0.33337214,81143.0,81142.0,0.0609]
[1741908557757,0.20481214,81143.0,81142.0,0.0609]
[1741908557951,0.33637214,81143.0,81142.0,0.0609]
[1741908558158,0.33637214,81143.0,81142.0,0.0307]
[1741908558350,0.1232982,81135.0,81134.0,7e-08]
[1741908559153,0.1866982,81135.0,81134.0,7e-08]
[1741908559452,0.3182582,81135.0,81134.0,7e-08]
[1741908560162,0.1866982,81135.0,81134.0,7e-08]
[1741908560367,0.3182582,81135.0,81134.0,7e-08]
[1741908560569,0.1866982,81135.0,81134.0,7e-08]
[1741908560957,0.1886982,81135.0,81134.0,7e-08]
[1741908561155,0.3202582,81135.0,81134.0,7e-08]
[1741908561467,0.3232582,81135.0,81134.0,7e-08]
[1741908563068,0.1916982,81135.0,81134.0,7e-08]
[1741908563269,0.3232582,81135.0,81134.0,7e-08]
[1741908564562,0.123321,81120.0,81119.0,0.0965]
[1741908564866,0.254881,81120.0,81119.0,0.0965]
[1741908566165,0.254881,81120.0,81119.0,0.0985]
[1741908566366,0.254881,81120.0,81119.0,0.1005]
[1741908566563,0.2674325,81120.0,81119.0,0.1005]
[1741908567165,0.1233498,81101.0,81100.0,0.22349093]
[1741908567569,0.13156,81105.0,81100.0,0.10014013]
[1741908567776,0.00018487,81109.0,81108.0,0.1233392]
[1741908568166,0.12352257,81109.0,81108.0,0.1233392]
[1741908569169,0.00018487,81109.0,81108.0,0.1874392]
[1741908569369,0.00018487,81109.0,81108.0,0.1884392]
[1741908569771,0.12352257,81109.0,81108.0,0.20092791]
[1741908570675,0.00018487,81109.0,81108.0,0.20092791]
[1741908571179,0.12352257,81109.0,81108.0,0.19992791]
[1741908571381,0.00018487,81109.0,81108.0,0.19992791]
[1741908572088,0.12352257,81109.0,81108.0,0.44992791]
[1741908574281,0.00018487,81109.0,81108.0,0.44992791]
[1741908574784,0.00018487,81109.0,81108.0,0.45192791]
[1741908575984,0.00018487,81109.0,81108.0,0.45292791]
[1741908579197,0.061663,81117.0,81116.0,0.0616628]
[1741908579387,0.1849916,81117.0,81116.0,0.0616628]
[1741908580294,0.1849916,81117.0,81116.0,0.1254628]
[1741908586198,0.2151916,81117.0,81116.0,0.1254628]
[1741908586701,0.2151916,81117.0,81116.0,0.0638]
[1741908588121,0.2161916,81117.0,81116.0,0.0638]
[1741908589299,0.2171916,81117.0,81116.0,0.187127]
[1741908590005,0.2161916,81117.0,81116.0,0.187127]
[1741908590196,0.2181916,81117.0,81116.0,0.187127]
[1741908590789,0.2171916,81117.0,81116.0,0.187127]
[1741908591003,0.2181916,81117.0,81116.0,0.187127]
[1741908593701,0.2171916,81117.0,81116.0,0.187127]
[1741908593902,0.2181916,81117.0,81116.0,0.187127]
[1741908595291,0.2171916,81117.0,81116.0,0.187127]
[1741908596602,0.2161916,81117.0,81116.0,0.187127]
[1741908596802,0.2171916,81117.0,81116.0,0.187127]
[1741908597504,0.2161916,81117.0,81116.0,0.187127]
[1741908597706,0.2171916,81117.0,81116.0,0.187127]
[1741908601898,0.2161916,81117.0,81116.0,0.187127]
[1741908602099,0.2171916,81117.0,81116.0,0.187127]
[1741908604709,0.2161916,81117.0,81116.0,0.187127]
[1741908605210,0.2171916,81117.0,81116.0,0.187127]
[1741908605511,0.2161916,81117.0,81116.0,0.187127]
[1741908605810,0.2171916,81117.0,81116.0,0.187127]
[1741908606105,0.2161916,81117.0,81116.0,0.187127]
[1741908607300,0.2151916,81117.0,81116.0,0.187127]
[1741908610806,0.2151916,81117.0,81116.0,0.0638]
[1741908611512,0.3465516,81117.0,81116.0,0.0638]
[1741908612008,0.3495516,81117.0,81116.0,0.0638]
[1741908612308,0.2181916,81117.0,81116.0,0.187127]
[1741908612512,0.3495516,81117.0,81116.0,0.187127]
[1741908612812,0.3525516,81117.0,81116.0,0.187127]
[1741908613406,0.2211916,81117.0,81116.0,0.187127]
[1741908613712,0.3525516,81117.0,81116.0,0.187127]
[1741908613908,0.41251462,81117.0,81116.0,0.187127]
[1741908614509,0.41051462,81117.0,81116.0,0.187127]
[1741908614910,0.40851462,81117.0,81116.0,0.187127]
[1741908615517,0.24695462,81117.0,81116.0,0.187127]
[1741908616014,0.24595462,81117.0,81116.0,0.187127]
[1741908616216,0.24695462,81117.0,81116.0,0.187127]
[1741908617403,0.1869916,81117.0,81116.0,0.187127]
[1741908617610,0.1859916,81117.0,81116.0,0.187127]
[1741908617810,0.1849916,81117.0,81116.0,0.187127]
[1741908618721,0.1869916,81117.0,81116.0,0.187127]
[1741908619413,0.002,81117.0,81116.0,0.187127]
[1741908619618,0.36967881,81123.0,81122.0,0.1233179]
[1741908619818,0.24635801,81123.0,81122.0,0.1233179]
[1741908620123,0.18469921,81123.0,81122.0,0.1233179]
[1741908620311,0.13469921,81123.0,81122.0,0.1233179]
[1741908620513,0.25801561,81123.0,81122.0,0.3533179]
[1741908620709,0.25801561,81123.0,81122.0,0.4179179]
[1741908621321,0.1233164,81123.0,81122.0,0.4179179]
[1741908621524,0.1253164,81123.0,81122.0,0.4179179]
[1741908621718,0.1273164,81123.0,81122.0,0.4179179]
[1741908622328,0.1273164,81123.0,81122.0,0.1879179]
[1741908623338,0.1273164,81123.0,81122.0,0.4079179]
[1741908623520,0.1273164,81123.0,81122.0,0.1879179]
[1741908623926,0.1253164,81123.0,81122.0,0.4099179]
[1741908624128,0.1233164,81123.0,81122.0,0.1909179]
[1741908625322,0.23403928,81123.0,81122.0,0.1909179]
[1741908626530,0.26613928,81123.0,81122.0,0.1909179]
[1741908626722,0.29823928,81123.0,81122.0,0.1909179]
[1741908626922,0.29823928,81123.0,81122.0,0.0676]
[1741908627329,0.29823928,81123.0,81122.0,0.003]
[1741908627528,0.31085095,81123.0,81122.0,0.003]
[1741908627921,0.20012807,81123.0,81122.0,0.003]
[1741908628120,0.20012807,81123.0,81122.0,0.002]
[1741908628427,0.1233194,81121.0,81120.0,0.0646]
[1741908628615,0.1233255,81117.0,81116.0,0.22133484]
[1741908629229,0.1864255,81117.0,81116.0,0.22133484]
[1741908629928,0.1864255,81117.0,81116.0,0.34466184]
[1741908630328,0.1864255,81117.0,81116.0,0.22133484]
[1741908630830,0.0651,81117.0,81115.0,0.0303]
[1741908631026,0.0651,81117.0,81103.0,0.0946731]
[1741908631234,0.1233377,81109.0,81108.0,0.12352307]
[1741908631424,0.1233377,81109.0,81108.0,0.15382307]
[1741908631824,0.1233377,81109.0,81108.0,0.18562307]
[1741908632836,0.13566273,81109.0,81108.0,0.18562307]
[1741908633532,0.13566273,81109.0,81108.0,0.06228487]
[1741908634432,0.13566273,81109.0,81108.0,0.03048487]
[1741908634630,0.26690273,81109.0,81108.0,0.00018487]
[1741908635926,0.26690273,81109.0,81108.0,0.12352407]
[1741908636236,0.26690273,81109.0,81108.0,0.00018487]
[1741908637436,0.26690273,81109.0,81108.0,0.12352407]
[1741908638327,0.26790273,81109.0,81108.0,0.15372407]
[1741908638632,0.26890273,81109.0,81108.0,0.03038487]
[1741908638933,0.1233498,81101.0,81100.0,0.1]
[1741908639526,0.1233498,81101.0,81100.0,0.2233514]
[1741908640044,0.0616682,81110.0,81100.0,0.2233514]
[1741908640045,0.001,81109.0,81100.0,0.34220994]
[1741908640233,0.12452367,81109.0,81108.0,0.1233392]
[1741908640941,0.12452367,81109.0,81108.0,0.1873392]
[1741908641330,0.15452367,81109.0,81108.0,0.1873392]
[1741908641533,0.15652367,81109.0,81108.0,0.1873392]
[1741908641739,0.00218487,81109.0,81108.0,0.1873392]
[1741908642233,0.12552257,81109.0,81108.0,0.1873392]
[1741908642438,0.12752257,81109.0,81108.0,0.1873392]
[1741908643033,0.15832257,81109.0,81108.0,0.1873392]
[1741908643341,0.12752257,81109.0,81108.0,0.1873392]
[1741908643537,0.15832257,81109.0,81108.0,0.1873392]
[1741908643736,0.19082257,81109.0,81108.0,0.1873392]
[1741908643935,0.12752257,81109.0,81108.0,0.1873392]
[1741908644745,0.15832257,81109.0,81108.0,0.1873392]
[1741908646150,0.12752257,81109.0,81108.0,0.2073392]
[1741908646647,0.16052257,81109.0,81108.0,0.064]
[1741908646835,0.1233498,81101.0,81095.0,0.22133484]
[1741908647035,0.1233498,81101.0,81099.0,0.1233528]
[1741908647351,0.1233498,81101.0,81100.0,0.2233514]
[1741908648141,0.1233498,81101.0,81100.0,0.2870514]
[1741908648848,0.31639837,81109.0,81108.0,0.1233392]
[1741908649541,0.06185487,81109.0,81108.0,0.1233392]
[1741908649937,0.00018487,81109.0,81108.0,0.1233392]
[1741908650340,0.12352257,81109.0,81108.0,0.1233392]
[1741908650543,0.12352257,81109.0,81108.0,0.1881392]
[1741908651250,0.15642257,81109.0,81108.0,0.032]
[1741908651637,0.18952257,81109.0,81108.0,0.032]
[1741908651950,0.19052257,81109.0,81108.0,0.032]
[1741908652153,0.19052257,81109.0,81108.0,0.0644]
[1741908652465,0.19052257,81109.0,81108.0,0.1877392]
[1741908653241,0.19152257,81109.0,81108.0,0.1877392]
[1741908653442,0.19152257,81109.0,81108.0,0.032]
[1741908653637,0.15862257,81109.0,81108.0,0.1553392]
[1741908653840,0.19032257,81109.0,81108.0,0.1553392]
[1741908654747,0.18932257,81109.0,81108.0,0.1553392]
[1741908654947,0.19032257,81109.0,81108.0,0.1553392]
[1741908655449,0.18932257,81109.0,81108.0,0.1553392]
[1741908656840,0.00118487,81109.0,81108.0,0.1553392]
[1741908657045,0.18407503,81117.0,81116.0,0.123327]
[1741908657243,0.07452715,81159.0,81116.0,0.52]
[1741908657440,0.00084,81153.0,81130.0,0.11684102]
[1741908657658,0.0616434,81146.0,81145.0,0.1232799]
[1741908658648,0.25671048,81148.0,81145.0,0.1232799]
[1741908658842,0.37999118,81148.0,81147.0,0.1232799]
[1741908659640,0.21749407,81154.0,81153.0,0.1232708]
[1741908659855,0.06182007,81154.0,81153.0,0.1232708]
[1741908660040,0.00018487,81154.0,81153.0,0.1232708]
[1741908660637,0.00018487,81154.0,81153.0,0.1860708]
[1741908662651,0.00518487,81154.0,81153.0,0.1860708]
[1741908663242,0.00118487,81154.0,81153.0,0.1860708]
[1741908664055,0.0924295,81161.0,81153.0,0.0628]
[1741908664252,0.1848805,81168.0,81167.0,0.1232435]
[1741908664443,0.38736731,81168.0,81167.0,0.1232435]
[1741908664638,0.26411231,81168.0,81167.0,0.1232435]
[1741908664841,0.1536435,81171.0,81170.0,0.123245]
[1741908665044,0.0304,81171.0,81170.0,0.123245]
[1741908665246,0.11042032,81172.0,81171.0,0.1232435]
[1741908665447,0.11042032,81172.0,81171.0,0.1859435]
[1741908665957,0.23366232,81172.0,81171.0,0.1859435]
[1741908666946,0.123242,81172.0,81171.0,0.1859435]
[1741908667146,0.0616239,81169.0,81166.0,0.0616253]
[1741908667353,0.1232495,81167.0,81166.0,0.0616253]
[1741908667852,0.32573631,81167.0,81166.0,0.0616253]
[1741908668055,0.38783631,81167.0,81166.0,0.0616253]
[1741908668658,0.39183631,81167.0,81166.0,0.0616253]
[1741908669257,0.39583631,81167.0,81166.0,0.0616253]
[1741908670265,0.27258681,81167.0,81166.0,0.0616253]
[1741908670556,0.39583631,81167.0,81166.0,0.0616253]
[1741908671860,0.1616495,81167.0,81166.0,0.0616253]
[1741908672256,0.36413631,81167.0,81166.0,0.0616253]
[1741908673456,0.1232556,81163.0,81162.0,0.18506467]
[1741908674757,0.1262556,81163.0,81162.0,0.18506467]
[1741908675060,0.1292556,81163.0,81162.0,0.18506467]
[1741908675854,0.33174241,81163.0,81162.0,0.00018487]
[1741908676070,0.33948681,81163.0,81138.0,0.40944]
[1741908676359,0.33948681,81163.0,81120.0,0.11684102]
[1741908676360,0.1232906,81140.0,81136.0,0.0304]
[1741908676554,0.0645,81139.0,81136.0,0.1232936]
[1741908676760,0.0321,81139.0,81137.0,0.031]
[1741908676960,0.0324,81147.0,81146.0,0.1232814]
[1741908677156,0.0324,81147.0,81141.0,0.0616442]
[1741908677157,0.2542703,81154.0,81153.0,0.1232708]
[1741908677376,0.06468487,81155.0,81145.0,0.0614]
[1741908677657,0.123286,81143.0,81142.0,0.1232857]
[1741908678057,0.20248681,81143.0,81138.0,0.00318487]
[1741908678261,0.1232921,81140.0,81139.0,0.1849321]
[1741908678462,0.1886306,81142.0,81141.0,0.123289]
[1741908678662,0.1877906,81142.0,81141.0,0.123289]
[1741908678967,0.39027741,81142.0,81141.0,0.123289]
[1741908679564,0.38827741,81142.0,81141.0,0.123289]
[1741908680755,0.0321,81142.0,81141.0,0.126289]
[1741908681072,0.1232821,81146.0,81145.0,0.123283]
[1741908681463,0.32576891,81146.0,81145.0,0.123283]
[1741908682571,0.32576891,81146.0,81145.0,0.124283]
[1741908683362,0.32576891,81146.0,81145.0,0.001]
[1741908683363,0.35636891,81146.0,81145.0,0.001]
[1741908683565,0.38726891,81146.0,81145.0,0.001]
[1741908684161,0.38726891,81146.0,81145.0,0.124283]
[1741908684970,0.38826891,81146.0,81145.0,0.123283]
[1741908685365,0.32662821,81146.0,81142.0,0.0327]
[1741908685567,0.123289,81141.0,81140.0,0.1232894]
[1741908685769,0.122289,81141.0,81140.0,0.1232894]
[1741908685962,0.32477581,81141.0,81140.0,0.1232894]
[1741908686360,0.39077581,81141.0,81140.0,0.1232894]
[1741908687075,0.39077581,81141.0,81140.0,0.1534894]
[1741908687263,0.39077581,81141.0,81140.0,0.1855894]
[1741908687464,0.38977581,81141.0,81140.0,0.1855894]
[1741908688274,0.38977581,81141.0,81140.0,0.1534894]
[1741908688461,0.38977581,81141.0,81140.0,0.1232894]
[1741908688969,0.38977581,81141.0,81140.0,0.1870894]
[1741908689566,0.1232921,81139.0,81135.0,0.0018487]
[1741908689964,0.32577891,81139.0,81135.0,0.0018487]
[1741908690280,0.35717891,81139.0,81135.0,0.0018487]
[1741908690966,0.35717891,81139.0,81136.0,0.1232958]
[1741908691477,0.35717891,81139.0,81138.0,0.12347847]
[1741908692164,0.35717891,81139.0,81138.0,0.15637847]
[1741908693770,0.35717891,81139.0,81138.0,0.15737847]
[1741908694076,0.35717891,81139.0,81138.0,0.15837847]
[1741908694474,0.35717891,81139.0,81138.0,0.15737847]
[1741908694670,0.23388681,81139.0,81138.0,0.15737847]
[1741908694869,0.35717891,81139.0,81138.0,0.15837847]
[1741908695274,0.35717891,81139.0,81138.0,0.15637847]
[1741908697077,0.35717891,81139.0,81138.0,0.15837847]
[1741908697674,0.35717891,81139.0,81138.0,0.16037847]
[1741908698374,0.35717891,81139.0,81138.0,0.15837847]
[1741908699371,0.35717891,81139.0,81138.0,0.00218487]
[1741908700373,0.35717891,81139.0,81138.0,0.00118487]
[1741908700576,0.35717891,81139.0,81138.0,0.00218487]
[1741908701279,0.35717891,81139.0,81138.0,0.12547847]
[1741908702979,0.35717891,81139.0,81138.0,0.00218487]
[1741908704486,0.35817891,81139.0,81138.0,0.00018487]
[1741908704686,0.35917891,81139.0,81138.0,0.00018487]
[1741908705186,0.35917891,81139.0,81138.0,0.12347847]
[1741908705489,0.35917891,81139.0,81138.0,0.18567847]
[1741908705787,0.002,81139.0,81138.0,0.18567847]
[1741908706288,0.1252921,81139.0,81138.0,0.18567847]
[1741908706476,0.002,81139.0,81138.0,0.18567847]
[1741908706878,0.001,81139.0,81138.0,0.18567847]
[1741908707082,0.1242921,81139.0,81138.0,0.18567847]
[1741908707486,0.1242921,81139.0,81138.0,0.18767847]
[1741908707787,0.1232921,81139.0,81138.0,0.18767847]
[1741908708485,0.32577891,81139.0,81138.0,0.18567847]
[1741908708678,0.35907891,81139.0,81138.0,0.19067847]
[1741908708878,0.32577891,81139.0,81138.0,0.19067847]
[1741908710091,0.1232921,81139.0,81138.0,0.18867847]
[1741908710288,0.35887891,81139.0,81138.0,0.19067847]
[1741908710691,0.35887891,81139.0,81138.0,0.18867847]
[1741908710889,0.35887891,81139.0,81138.0,0.00518487]
[1741908711191,0.48975891,81139.0,81138.0,0.00218487]
[1741908711390,0.52195891,81139.0,81138.0,0.00218487]
[1741908711584,0.52195891,81139.0,81138.0,0.00418487]
[1741908711985,0.52195891,81139.0,81138.0,0.00218487]
[1741908712883,0.52195891,81139.0,81135.0,0.0018487]
[1741908712884,0.52395891,81139.0,81135.0,0.0018487]
[1741908713084,0.1232966,81136.0,81135.0,0.0018487]
[1741908713478,0.1232982,81135.0,81134.0,0.22133484]
[1741908713688,0.39138501,81135.0,81134.0,0.22133484]
[1741908714794,0.39138501,81135.0,81125.0,0.36879173]
[1741908714795,0.1233118,81126.0,81125.0,0.22133484]
[1741908715289,0.32579861,81126.0,81125.0,0.22133484]
[1741908715493,0.39139861,81126.0,81125.0,0.22133484]
[1741908717390,0.39639861,81126.0,81125.0,0.22133484]
[1741908717996,0.39739861,81126.0,81125.0,0.22133484]
[1741908718487,0.40982959,81126.0,81125.0,1e-08]
[1741908718883,0.28651779,81126.0,81107.0,0.0635]
[1741908719085,0.1849983,81115.0,81114.0,0.1849845]
[1741908719294,0.3158783,81115.0,81114.0,0.1849845]
[1741908719493,0.51836511,81115.0,81114.0,0.1849845]
[1741908719689,0.33336681,81115.0,81114.0,0.1849845]
[1741908719998,0.32581541,81115.0,81114.0,0.2466569]
[1741908720494,0.095063,81117.0,81114.0,0.1233268]
[1741908720789,0.184977,81125.0,81124.0,0.1233134]
[1741908720996,0.58000211,81125.0,81124.0,0.1233134]
[1741908721294,0.51602211,81125.0,81124.0,0.1233134]
[1741908722595,0.48252211,81125.0,81124.0,0.1233134]
[1741908722989,0.48452211,81125.0,81124.0,0.1233134]
[1741908723493,0.20648681,81125.0,81124.0,0.1233134]
[1741908723694,0.32980021,81125.0,81124.0,0.1233134]
[1741908725985,0.32780021,81125.0,81124.0,0.1233134]
[1741908726183,0.1575134,81125.0,81124.0,0.1233134]
[1741908726393,0.36000021,81125.0,81124.0,0.1233134]
[1741908727797,0.123321,81121.0,81120.0,0.1233196]
[1741908728189,0.151021,81121.0,81120.0,0.1233196]
[1741908728892,0.151021,81121.0,81120.0,0.1263196]
[1741908729702,0.151021,81121.0,81120.0,0.1253196]
[1741908731706,0.151021,81121.0,81120.0,0.1233196]
[1741908732204,0.23376486,81125.0,81124.0,0.1233149]
[1741908732595,0.46755167,81125.0,81124.0,0.1233149]
[1741908733105,0.49955167,81125.0,81124.0,0.1233149]
[1741908733407,0.49955167,81125.0,81124.0,0.1535149]
[1741908733907,0.49955167,81125.0,81124.0,0.1837149]
[1741908734301,0.43625167,81125.0,81124.0,0.1837149]
[1741908734497,0.31293567,81125.0,81124.0,0.1837149]
[1741908734697,0.43624907,81125.0,81124.0,0.1837149]
[1741908735708,0.1233134,81125.0,81124.0,0.1837149]
[1741908736002,0.11044886,81128.0,81127.0,0.1233103]
[1741908736206,0.23375766,81128.0,81127.0,0.1233103]
[1741908736412,0.11044886,81128.0,81127.0,0.1233103]
[1741908736607,0.1838979,81142.0,81127.0,0.1937]
[1741908736907,0.0616458,81140.0,81133.0,0.1233012]
[1741908737104,0.1232924,81139.0,81133.0,0.3733012]
[1741908737903,0.1232924,81139.0,81133.0,0.4356012]
[1741908738200,0.1232937,81138.0,81133.0,0.44795987]
[1741908739300,0.1232914,81140.0,81133.0,0.44795987]
[1741908739504,0.1232923,81139.0,81133.0,0.44795987]
[1741908739704,0.14945002,81134.0,81133.0,0.44795987]
[1741908740109,0.00218487,81134.0,81133.0,0.44795987]
[1741908740309,0.00418487,81134.0,81133.0,0.44795987]
[1741908741010,0.32997138,81134.0,81133.0,0.1856012]
[1741908741410,0.32997138,81134.0,81133.0,0.1542012]
[1741908741804,0.36197138,81134.0,81133.0,0.1542012]
[1741908742002,0.36197138,81134.0,81133.0,0.1874012]
[1741908742196,0.36197138,81134.0,81133.0,0.1542012]
[1741908742407,0.23667168,81134.0,81125.0,0.0332]
[1741908742609,0.1233073,81129.0,81128.0,0.0312]
[1741908742912,0.1233073,81129.0,81128.0,0.1545088]
[1741908743111,0.32579411,81129.0,81128.0,0.1545088]
[1741908743307,0.33324681,81129.0,81123.0,0.061658]
[1741908743506,0.1233194,81121.0,81120.0,0.0303]
[1741908743706,0.1213194,81121.0,81120.0,0.0303]
[1741908743910,0.0616612,81120.0,81116.0,0.29457636]
[1741908744108,0.1233255,81117.0,81116.0,0.41790336]
[1741908744407,0.1233255,81117.0,81116.0,0.44820336]
[1741908744610,0.32581231,81117.0,81116.0,0.44820336]
[1741908745413,0.32581231,81117.0,81116.0,0.48120336]
[1741908746208,0.35891231,81117.0,81116.0,0.48120336]
[1741908748012,0.35891231,81117.0,81116.0,0.186627]
[1741908748525,0.35891231,81117.0,81116.0,0.0303]
[1741908748704,0.39211231,81117.0,81116.0,0.153627]
[1741908751011,0.1564255,81117.0,81116.0,0.153627]
[1741908754616,0.35891231,81117.0,81116.0,0.153627]
[1741908755015,0.185008,81110.0,81109.0,0.1849976]
[1741908755321,0.185008,81110.0,81109.0,0.2163976]
[1741908755516,0.185008,81110.0,81109.0,0.2491976]
[1741908756115,0.185008,81110.0,81109.0,0.1258669]
[1741908758218,0.38749481,81110.0,81109.0,0.1258669]
[1741908761627,0.20248681,81110.0,81109.0,0.1258669]
[1741908761814,0.32582301,81110.0,81109.0,0.1258669]
[1741908762824,0.20248681,81110.0,81109.0,0.1258669]
[1741908763526,0.0332,81112.0,81109.0,0.3558669]
[1741908763729,0.0308,81116.0,81115.0,0.1849929]
[1741908763930,0.00018487,81118.0,81117.0,0.1233255]
[1741908765732,0.15580887,81118.0,81117.0,0.1233255]
[1741908765933,0.15680887,81118.0,81117.0,0.1233255]
[1741908766229,0.15780887,81118.0,81117.0,0.1233255]
[1741908766431,0.15680887,81118.0,81117.0,0.1233255]
[1741908767022,0.15580887,81118.0,81117.0,0.1233255]
[1741908767225,0.35829568,81118.0,81117.0,0.1233255]
[1741908767533,0.39039568,81118.0,81117.0,0.1233255]
[1741908768030,0.03248487,81118.0,81117.0,0.1233255]
[1741908768332,0.00018487,81118.0,81117.0,0.1233255]
[1741908768518,0.00018487,81118.0,81117.0,0.1433255]
[1741908768719,0.12350887,81118.0,81117.0,0.1253255]
[1741908771825,0.12350887,81118.0,81117.0,0.1243255]
[1741908772032,0.12350887,81118.0,81117.0,0.1253255]
[1741908772333,0.32599568,81118.0,81117.0,0.1253255]
[1741908772730,0.32599568,81118.0,81117.0,0.1243255]
[1741908772932,0.38639568,81118.0,81117.0,0.1253255]
[1741908774131,0.00018487,81118.0,81117.0,0.1253255]
[1741908776135,0.00018487,81118.0,81117.0,0.1243255]
[1741908776331,0.00018487,81118.0,81117.0,0.1253255]
[1741908778038,0.14726515,81124.0,81117.0,0.322]
[1741908778332,0.14726515,81124.0,81123.0,0.1233164]
[1741908778537,0.14726515,81124.0,81123.0,0.3633164]
[1741908779142,0.14726515,81124.0,81123.0,0.4274164]
[1741908779537,0.14826515,81124.0,81123.0,0.4274164]
[1741908779943,0.001,81124.0,81123.0,0.4274164]
[1741908780347,0.002,81124.0,81123.0,0.4274164]
[1741908780845,0.14745002,81132.0,81123.0,0.3041]
[1741908781042,0.14745002,81132.0,81131.0,0.1233042]
[1741908781253,0.14745002,81132.0,81131.0,0.3733042]
[1741908782143,0.15045002,81132.0,81131.0,0.3733042]
[1741908782339,0.15145002,81132.0,81131.0,0.38589348]
[1741908782749,0.00418487,81132.0,81131.0,0.38589348]
[1741908783042,0.00318487,81132.0,81131.0,0.38589348]
[1741908783234,0.00618487,81132.0,81131.0,0.3733042]
[1741908783646,0.12948757,81132.0,81131.0,0.3733042]
[1741908783846,0.33197438,81132.0,81131.0,0.3733042]
[1741908784351,0.36427438,81132.0,81131.0,0.3733042]
[1741908784645,0.39637438,81132.0,81131.0,0.3733042]
[1741908787843,0.39637438,81132.0,81131.0,0.1233042]
[1741908788039,0.0616521,81131.0,81125.0,0.0325]
[1741908788343,0.1233118,81126.0,81125.0,0.02]
[1741908788552,0.184976,81124.0,81123.0,0.1233151]
[1741908789044,0.1233179,81122.0,81121.0,0.0623389]
[1741908789243,0.1233179,81122.0,81121.0,0.0616589]
[1741908789448,0.32580471,81122.0,81121.0,0.0616589]
[1741908789645,0.39400471,81122.0,81121.0,0.0616589]
[1741908790445,0.27068681,81122.0,81121.0,0.0616589]
[1741908790844,0.39400471,81122.0,81121.0,0.0616589]
[1741908791052,0.39400471,81122.0,81121.0,0.1308589]
[1741908791437,0.27068681,81122.0,81121.0,0.1308589]
[1741908791643,0.39400471,81122.0,81121.0,0.1308589]
[1741908792051,0.39500471,81122.0,81121.0,0.1308589]
[1741908794853,0.39400471,81122.0,81121.0,0.1308589]
[1741908795856,0.27068681,81122.0,81121.0,0.1308589]
[1741908796152,0.23738681,81122.0,81121.0,0.1308589]
[1741908796363,0.0349,81137.0,81121.0,0.2708589]
[1741908796545,0.0327,81130.0,81129.0,0.1233073]
[1741908796946,0.14829002,81132.0,81131.0,0.1233042]
[1741908797152,0.14745002,81132.0,81131.0,0.19559073]
[1741908797558,0.14745002,81132.0,81131.0,0.16769073]
[1741908797751,0.14745002,81132.0,81131.0,0.17769073]
[1741908798476,0.14845002,81132.0,81131.0,0.17769073]
[1741908798855,0.14945002,81132.0,81131.0,0.17769073]
[1741908799453,0.00218487,81132.0,81131.0,0.17769073]
[1741908801055,0.14726515,81145.0,81135.0,0.0616484]
[1741908801254,0.14726515,81145.0,81144.0,0.1232845]
[1741908801454,0.14726515,81145.0,81144.0,0.3932845]
[1741908801658,0.14726515,81145.0,81144.0,0.4578845]
[1741908802347,0.14726515,81145.0,81144.0,0.46838472]
[1741908802861,0.15226515,81145.0,81144.0,0.46838472]
[1741908803357,0.005,81145.0,81144.0,0.46838472]
[1741908803853,0.14726515,81149.0,81148.0,0.1232784]
[1741908804058,0.14726515,81149.0,81148.0,0.38377862]
[1741908804748,0.14726515,81149.0,81148.0,0.44877862]
[1741908805864,0.14726515,81149.0,81148.0,0.41617862]
[1741908808756,0.0329,81151.0,81150.0,0.1232754]
[1741908809053,0.00018487,81153.0,81150.0,0.03050022]
[1741908809361,0.0616129,81183.0,81167.0,0.1232495]
[1741908809362,0.0645,81168.0,81167.0,0.1232495]
[1741908809561,0.0645,81168.0,81167.0,0.13374972]
[1741908809766,0.26698681,81168.0,81167.0,0.13374972]
[1741908809964,0.23428681,81168.0,81167.0,0.20014972]
[1741908811063,0.23928681,81168.0,81167.0,0.20014972]
[1741908811362,0.23928681,81168.0,81167.0,0.20029299]
[1741908812967,0.36253481,81168.0,81167.0,0.16759299]
[1741908813758,0.36253481,81168.0,81167.0,0.16739729]
[1741908814362,0.160048,81168.0,81167.0,0.13369729]
[1741908814560,0.36253481,81168.0,81167.0,0.13369729]
[1741908815157,0.23928681,81168.0,81167.0,0.13369729]
[1741908815558,0.27188681,81168.0,81167.0,0.16669729]
[1741908817956,0.27188681,81168.0,81167.0,0.16704407]
[1741908820066,0.39513481,81168.0,81167.0,0.16704407]
[1741908820764,0.27188681,81168.0,81167.0,0.16704407]
[1741908821559,0.27188681,81168.0,81167.0,0.1562495]
[1741908821765,0.27188681,81168.0,81167.0,0.16702651]
[1741908825165,0.0694,81168.0,81167.0,0.16702651]
[1741908825671,0.0694,81168.0,81167.0,0.16696982]
[1741908826167,0.27188681,81168.0,81167.0,0.16696982]
[1741908830364,0.27188681,81168.0,81167.0,0.19996982]
[1741908832674,0.20748681,81168.0,81167.0,0.21751536]
[1741908833466,0.005,81168.0,81167.0,0.21751536]
[1741908834273,0.00018487,81176.0,81175.0,0.1232374]
[1741908834462,0.14726515,81181.0,81180.0,0.1232298]
[1741908834669,0.14726515,81181.0,81180.0,0.15149566]
[1741908835367,0.14726515,81181.0,81180.0,0.21649566]
[1741908836761,0.15226515,81181.0,81180.0,0.21649566]
[1741908837879,0.005,81181.0,81180.0,0.21649566]
[1741908838373,0.1232213,81186.0,81180.0,0.21649566]
[1741908838573,0.32570911,81185.0,81184.0,0.1232237]
[1741908838768,0.0637,81185.0,81184.0,0.22879163]
[1741908838970,0.26618681,81185.0,81184.0,0.22879163]
[1741908840093,0.38940901,81185.0,81184.0,0.18388956]
[1741908840272,0.38940901,81185.0,81184.0,0.15148956]
[1741908840769,0.38940901,81185.0,81184.0,0.13394402]
[1741908841074,0.38940901,81185.0,81184.0,0.13397285]
[1741908841273,0.38940901,81185.0,81184.0,0.19737285]
[1741908841773,0.27118681,81185.0,81184.0,0.19737285]
[1741908842677,0.27118681,81185.0,81184.0,0.2150708]
[1741908843071,0.27118681,81185.0,81184.0,0.2750708]
[1741908843277,0.20748681,81185.0,81184.0,0.2750708]
[1741908843474,0.20748681,81185.0,81184.0,0.3092708]
[1741908843675,0.00018487,81189.0,81188.0,0.1232177]
[1741908843877,0.00018487,81189.0,81188.0,0.1716648]
[1741908844580,0.00018487,81189.0,81188.0,0.2372648]
[1741908844765,0.14726515,81192.0,81188.0,0.1140471]
[1741908844971,0.21972151,81203.0,81196.0,0.1232055]
[1741908845276,0.21972151,81203.0,81202.0,0.1231964]